Workbook

Sheet смета
A1: ВСЕГО | B1: Доп.ЭК | C1: Ассигнования 2025 года (счет ЛАГ, ЛБГ) КЦСР 0230142310, 0230142320, 0260499900, ДКР 302,304,305,308, кроме ДФК 13580 | E1: Заявлено УО на 2026 год | F1: Учтено в смете учреждения на 2026 год | G1: муниципальное задание (счет ЛАГ, ЛБГ) | R1: Отклонение
C2: Утвержденный план | D2: Уточненный план | G2: в том числе
G3: НФЗ (302) | H3: НСИ (304) | K3: довед. до утв.тариф. (305) | N3: сверхнорм. расходы (308)
H4: Всего | I4: содержание транспорта | J4: прочие расходы | K4: Всего | L4: содержание транспорта | M4: прочие расходы | N4: Всего (содержание транспорта и прочие расходы) | O4: содержание транспорта | P4: прочие расходы | Q4: Охрана учреждений всего (КЦСР 0260499900)
A6: 1 | B6: 2 | C6: 3 | D6: 4 | E6: 5 | F6: 6=7+8+11+14 | G6: 7 | H6: 8=9+10 | I6: 9 | J6: 10 | K6: 11=12+13 | L6: 12 | M6: 13 | N6: 14=15+16+17 | O6: 15 | P6: 16 | Q6: 17 | R6: 18
A7: Нормативный объем на 2026 год | C7: х | D7: х | E7: х | F7: 39,835,583.54 | G7: 34,686,912.00 | H7: 5,148,671.54 | I7: - | J7: 5,148,671.54 | K7: х | L7: х | M7: х | N7: х | O7: х | P7: х | Q7: х | R7: -
A8: сверхнормативный объем в смете учреждения | C8: - | D8: - | E8: - | F8: 19,571,454.67 | G8: - | H8: - | I8: - | J8: - | K8: - | L8: - | M8: - | N8: - | O8: - | P8: - | Q8: - | R8: -
A9: ВСЕГО | C9: 50,149,590.02 | D9: 55,136,681.51 | E9: 59,407,038.21 | F9: 59,407,038.21 | G9: 34,686,912.00 | H9: 5,148,671.54 | I9: - | J9: 5,148,671.54 | K9: 15,773,979.72 | L9: 391,240.58 | M9: 15,382,739.14 | N9: 3,797,474.95 | O9: 182,598.00 | P9: 3,001,676.95 | Q9: 613,200.00 | R9: -
A10: в т.ч. без налогов | C10: 49,746,529.18 | D10: 54,735,506.67 | E10: 59,005,867.37 | F10: 59,005,867.37 | G10: 34,686,912.00 | H10: 5,148,671.54 | I10: - | J10: 5,148,671.54 | K10: 15,773,979.72 | L10: 391,240.58 | M10: 15,382,739.14 | N10: 3,396,304.11 | O10: 175,798.00 | P10: 2,607,306.11 | Q10: 613,200.00 | R10: -
A11: Зарплата с начислениями | C11: 46,361,678.61 | D11: 51,234,647.60 | E11: 55,609,563.26 | F11: 55,609,563.26 | G11: 34,686,912.00 | H11: 5,148,671.54 | I11: - | J11: 5,148,671.54 | K11: 15,773,979.72 | L11: 391,240.58 | M11: 15,382,739.14 | N11: x | O11: x | P11: x | Q11: х | R11: -
A12: 211 "Заработная плата" | C12: 35,608,048.08 | D12: 39,326,144.40 | E12: 42,710,878.08 | F12: 42,710,878.08 | G12: 26,641,253.46 | H12: 3,954,432.83 | I12: - | J12: 3,954,432.83 | K12: 12,115,191.79 | L12: 300,492.00 | M12: 11,814,699.79 | N12: x | O12: x | P12: x | Q12: х | R12: -
A13: Заработная плата педагогического персонала | B13: П211004 | C13: 23,220,192.36 | D13: 25,299,788.65 | E13: 27,954,690.96 | F13: 27,954,690.96 | G13: 24,979,853.46 | H13: - | I13: - | J13: - | K13: 2,974,837.50 | L13: - | M13: 2,974,837.50 | N13: x | O13: x | P13: x | Q13: х | R13: -
A14: Заработная плата вспомогательного персонала | B14: П211005 | C14: 12,387,855.72 | D14: 13,988,462.76 | E14: 14,756,187.12 | F14: 14,756,187.12 | G14: 1,661,400.00 | H14: 3,954,432.83 | I14: - | J14: 3,954,432.83 | K14: 9,140,354.29 | L14: 300,492.00 | M14: 8,839,862.29 | N14: x | O14: x | P14: x | Q14: х | R14: -
A15: Выплата единовременного денежного вознаграждения при награждении муниципальными наградами города Казани | B15: П211025 | C15: - | D15: 37,892.99 | E15: - | F15: - | G15: - | H15: - | I15: - | J15: - | K15: - | L15: - | M15: - | N15: x | O15: x | P15: x | Q15: x | R15: -
A16: 213 "Начисления на оплату труда" | C16: 10,753,630.53 | D16: 11,908,503.20 | E16: 12,898,685.18 | F16: 12,898,685.18 | G16: 8,045,658.54 | H16: 1,194,238.71 | I16: - | J16: 1,194,238.71 | K16: 3,658,787.93 | L16: 90,748.58 | M16: 3,568,039.35 | N16: x | O16: x | P16: x | Q16: х | R16: -
A17: Начисления на заработную плату педагогического персонала | B17: П213004 | C17: 7,012,498.09 | D17: 7,660,238.60 | E17: 8,442,316.67 | F17: 8,442,316.67 | G17: 7,543,915.74 | H17: - | I17: - | J17: - | K17: 898,400.93 | L17: - | M17: 898,400.93 | N17: x | O17: x | P17: x | Q17: х | R17: -
A18: Начисления на заработную плату вспомогательного персонала | B18: П213005 | C18: 3,741,132.44 | D18: 4,236,820.91 | E18: 4,456,368.51 | F18: 4,456,368.51 | G18: 501,742.80 | H18: 1,194,238.71 | I18: - | J18: 1,194,238.71 | K18: 2,760,387.00 | L18: 90,748.58 | M18: 2,669,638.42 | N18: x | O18: x | P18: x | Q18: х | R18: -
A19: Начисления на выплату единовременного денежного вознаграждения при награждении муниципальными наградами города Казани | B19: П213025 | C19: - | D19: 11,443.69 | E19: - | F19: - | G19: - | H19: - | I19: - | J19: - | K19: - | L19: - | M19: - | N19: x | O19: x | P19: x | Q19: x | R19: -
A20: 223 "Коммунальные услуги" | C20: 1,888,885.50 | D20: 1,890,662.84 | E20: 1,883,337.10 | F20: 1,883,337.10 | G20: х | H20: - | I20: х | J20: - | K20: х | L20: х | M20: х | N20: 1,883,337.10 | O20: х | P20: 1,883,337.10 | Q20: х | R20: -
A21: Электроснабжение | B21: П223001 | C21: 384,100.00 | D21: 375,887.00 | E21: 382,741.00 | F21: 382,741.00 | G21: х | H21: - | I21: х | J21: - | K21: х | L21: х | M21: х | N21: 382,741.00 | O21: х | P21: 382,741.00 | Q21: х | R21: -
A22: Теплоснабжение | B22: П223002 | C22: 1,261,798.00 | D22: 1,261,798.00 | E22: 1,198,745.00 | F22: 1,198,745.00 | G22: х | H22: - | I22: х | J22: - | K22: х | L22: х | M22: х | N22: 1,198,745.00 | O22: х | P22: 1,198,745.00 | Q22: х | R22: -
A23: Газоснабжение | B23: П223003 | C23: - | D23: - | E23: - | F23: - | G23: х | H23: - | I23: х | J23: - | K23: х | L23: х | M23: х | N23: - | O23: х | P23: - | Q23: х | R23: -
A24: Водоснабжение | B24: П223004 | C24: 39,111.00 | D24: 47,324.00 | E24: 49,553.00 | F24: 49,553.00 | G24: х | H24: - | I24: х | J24: - | K24: х | L24: х | M24: х | N24: 49,553.00 | O24: х | P24: 49,553.00 | Q24: х | R24: -
A25: Оплата договоров на вывоз ТКО с регион.оператором | B25: П223017 | C25: 203,876.50 | D25: 205,653.84 | E25: 252,298.10 | F25: 252,298.10 | G25: х | H25: - | I25: х | J25: - | K25: х | L25: х | M25: х | N25: 252,298.10 | O25: х | P25: 252,298.10 | Q25: х | R25: -
A26: Прочие коммунальные услуги | B26: П223099 | C26: - | D26: - | E26: - | F26: - | G26: х | H26: - | I26: х | J26: - | K26: х | L26: х | M26: х | N26: - | O26: х | P26: - | Q26: х | R26: -
A27: Прочие расходы | C27: 1,495,965.07 | D27: 1,610,196.23 | E27: 1,512,967.01 | F27: 1,512,967.01 | G27: - | H27: - | I27: - | J27: - | K27: х | L27: х | M27: х | N27: 1,512,967.01 | O27: 175,798.00 | P27: 723,969.01 | Q27: 613,200.00 | R27: -
A28: 221 "Услуги связи" | C28: 35,000.00 | D28: 35,000.00 | E28: 68,200.00 | F28: 68,200.00 | G28: х | H28: - | I28: х | J28: - | K28: х | L28: х | M28: х | N28: 68,200.00 | O28: х | P28: 68,200.00 | Q28: х | R28: -
A29: Услуги телефонной связи (абонентская и повременная плата (ежемесячный платеж) за местные, междугородные, международные переговоры) | B29: П221001 | C29: 35,000.00 | D29: 35,000.00 | E29: 43,000.00 | F29: 43,000.00 | G29: х | H29: - | I29: х | J29: - | K29: х | L29: х | M29: х | N29: 43,000.00 | O29: х | P29: 43,000.00 | Q29: х | R29: -
A30: Плата за предоставление доступа (разовый платеж) к телефонной линии связи и Интернет | B30: П221002 | C30: - | D30: - | E30: - | F30: - | G30: х | H30: - | I30: х | J30: - | K30: х | L30: х | M30: х | N30: - | O30: х | P30: - | Q30: х | R30: -
A31: Плата за услуги сети Интернет | B31: П221012 | C31: - | D31: - | E31: 25,200.00 | F31: 25,200.00 | G31: х | H31: - | I31: х | J31: - | K31: х | L31: х | M31: х | N31: 25,200.00 | O31: х | P31: 25,200.00 | Q31: х | R31: -
A32: Расходы по услугам связи | B32: П221099 | C32: - | D32: - | E32: - | F32: - | G32: х | H32: - | I32: х | J32: - | K32: х | L32: х | M32: х | N32: - | O32: х | P32: - | Q32: х | R32: -
A33: 222 "Транспортные услуги" | C33: - | D33: - | E33: - | F33: - | G33: х | H33: - | I33: х | J33: - | K33: х | L33: х | M33: х | N33: - | O33: х | P33: - | Q33: х | R33: -
A34: Прочие расходы по транспортным услугам, не включенные в вышеуказанные дополнительные коды экономической классификации | B34: П222099 | C34: - | D34: - | E34: - | F34: - | G34: х | H34: - | I34: х | J34: - | K34: х | L34: х | M34: х | N34: - | O34: х | P34: - | Q34: х | R34: -
A35: 224 "Арендная плата за пользование имуществом" | C35: - | D35: - | E35: - | F35: - | G35: х | H35: - | I35: - | J35: - | K35: х | L35: х | M35: х | N35: - | O35: - | P35: - | Q35: х | R35: -
A36: Аренда помещения | B36: П224001 | C36: - | D36: - | E36: - | F36: - | G36: х | H36: - | I36: х | J36: - | K36: х | L36: х | M36: х | N36: - | O36: х | P36: - | Q36: х | R36: -
A37: Аренда транспорта, оборудования | B37: П224002 | C37: - | D37: - | E37: - | F37: - | G37: х | H37: - | I37: - | J37: - | K37: х | L37: х | M37: х | N37: - | O37: - | P37: - | Q37: х | R37: -
A38: Расходы по арендной плате за пользование имуществом в части возмещения коммунальных услуг | B38: П224011 | C38: - | D38: - | E38: - | F38: - | G38: - | H38: - | I38: - | J38: - | K38: x | L38: x | M38: x | N38: - | O38: - | P38: - | Q38: x | R38: -
A39: Прочие расходы по арендной плате за пользование имуществом, не включенные в вышеуказанные дополнительные коды экономической классификации | B39: П224099 | C39: - | D39: - | E39: - | F39: - | G39: х | H39: - | I39: - | J39: - | K39: х | L39: х | M39: х | N39: - | O39: - | P39: - | Q39: х | R39: -
A40: 225 "Работы, услуги по содержанию имущества" | C40: 508,823.00 | D40: 530,281.95 | E40: 528,590.63 | F40: 528,590.63 | G40: х | H40: - | I40: - | J40: - | K40: х | L40: х | M40: х | N40: 528,590.63 | O40: 31,798.00 | P40: 496,792.63 | Q40: х | R40: -
A41: Содержание в чистоте помещений, зданий, дворов, иного недвижимого имущества (в том числе озеленение (кроме посадки деревьев, кустарников)) | B41: П225002 | C41: 61,660.80 | D41: 20,000.00 | E41: 66,500.00 | F41: 66,500.00 | G41: х | H41: - | I41: x | J41: - | K41: х | L41: х | M41: х | N41: 66,500.00 | O41: x | P41: 66,500.00 | Q41: х | R41: -
A42: Проведение работ по ремонту и восстановлению эффективности функционирования коммунальных инженерных систем и коммуникаций, осуществляемые сверх регламентированного условиями поставки коммунальных услуг перечня работ (технологических нужд)(в части технического обслуживания и аварийного ремонта инженерных коммуникаций-систем водоснабжения, отопления, уличного освещения и пр.) | B42: П225003 | C42: 36,274.68 | D42: 36,274.68 | E42: 36,274.68 | F42: 36,274.68 | G42: х | H42: - | I42: x | J42: - | K42: х | L42: х | M42: х | N42: 36,274.68 | O42: x | P42: 36,274.68 | Q42: х | R42: -
A43: Обеспечение функционирования и поддержка (восстановление) работоспособности объектов нефинансовых активов | B43: П225004 | C43: - | D43: - | E43: - | F43: - | G43: х | H43: - | I43: x | J43: - | K43: х | L43: х | M43: х | N43: - | O43: x | P43: - | Q43: х | R43: -
A44: Зарплата внештатных сотрудников | B44: П225005 | C44: - | D44: - | E44: - | F44: - | G44: х | H44: - | I44: x | J44: - | K44: х | L44: х | M44: х | N44: - | O44: x | P44: - | Q44: х | R44: -
A45: Текущий ремонт зданий, сооружений, коммунальных инженерных систем и коммуникаций | B45: Н225007 | C45: - | D45: - | E45: 44,632.80 | F45: 44,632.80 | G45: х | H45: - | I45: x | J45: - | K45: х | L45: х | M45: х | N45: 44,632.80 | O45: x | P45: 44,632.80 | Q45: х | R45: -
A46: Техническое обслуживание и ремонт аппаратного обеспечения (оргтехника, медицинское оборудование, компьютерная техника и т.д.), включающее контроль технического состояния | B46: П225010 | C46: 30,000.00 | D46: 30,000.00 | E46: 30,000.00 | F46: 30,000.00 | G46: х | H46: - | I46: x | J46: - | K46: х | L46: х | M46: х | N46: 30,000.00 | O46: x | P46: 30,000.00 | Q46: х | R46: -
A47: Техническое обслуживание транспортных средств | B47: П225011 | C47: - | D47: 20,173.19 | E47: 20,000.00 | F47: 20,000.00 | G47: х | H47: - | I47: - | J47: x | K47: х | L47: х | M47: х | N47: 20,000.00 | O47: 20,000.00 | P47: x | Q47: х | R47: -
A48: Ремонт транспортных средств | B48: П225012 | C48: - | D48: 30,000.00 | E48: - | F48: - | G48: х | H48: - | I48: - | J48: x | K48: х | L48: х | M48: х | N48: - | O48: - | P48: x | Q48: х | R48: -
A49: Технический осмотр транспортных средств | B49: П225013 | C49: 5,000.00 | D49: - | E49: 3,758.00 | F49: 3,758.00 | G49: х | H49: - | I49: - | J49: x | K49: х | L49: х | M49: х | N49: 3,758.00 | O49: 3,758.00 | P49: x | Q49: х | R49: -
A50: Содержание транспортных средств (мойка и т.д.) | B50: П225014 | C50: - | D50: - | E50: - | F50: - | G50: х | H50: - | I50: - | J50: x | K50: х | L50: х | M50: х | N50: - | O50: - | P50: x | Q50: х | R50: -
A51: Расходы на техническое обслуживание и ремонт оборудования (торговое, кухонное, офисное, лифты и т.п.), мебели, бытовой техники, инвентаря (торгового, кухонного, офисного и т.п.) | B51: П225015 | C51: 144,339.04 | D51: 158,499.84 | E51: 163,486.82 | F51: 163,486.82 | G51: х | H51: - | I51: - | J51: - | K51: х | L51: х | M51: х | N51: 163,486.82 | O51: 8,040.00 | P51: 155,446.82 | Q51: х | R51: -
A52: Содержание в чистоте имущества, кроме недвижимого | B52: П225016 | C52: - | D52: - | E52: - | F52: - | G52: х | H52: - | I52: x | J52: - | K52: х | L52: х | M52: х | N52: - | O52: x | P52: - | Q52: х | R52: -
A53: Техническое обслуживание приборов учета | B53: П225035 | C53: 31,548.48 | D53: 35,334.24 | E53: 38,938.33 | F53: 38,938.33 | G53: х | H53: - | I53: x | J53: - | K53: х | L53: х | M53: х | N53: 38,938.33 | O53: x | P53: 38,938.33 | Q53: х | R53: -
A54: Противопожарные мероприятия (огнезащитная обработка чердачных перекрытий, замеры сопротивления изоляции, зарядка огнетушителей, опрессовка проводов) | B54: П225036 | C54: - | D54: - | E54: - | F54: - | G54: х | H54: - | I54: x | J54: - | K54: х | L54: х | M54: х | N54: - | O54: x | P54: - | Q54: х | R54: -
A55: Расходы по валке и обрезке зеленых насаждений в муниципальных учреждениях образования | B55: П225040 | C55: - | D55: - | E55: - | F55: - | G55: х | H55: - | I55: x | J55: - | K55: х | L55: х | M55: х | N55: - | O55: x | P55: - | Q55: х | R55: -
A56: Вывоз мусора (ТБО) для учреждений СКС | B56: П225050 | C56: - | D56: - | E56: - | F56: - | G56: х | H56: - | I56: x | J56: - | K56: х | L56: х | M56: х | N56: - | O56: x | P56: - | Q56: х | R56: -
A57: Прочие первоочередные расходы по работам, услугам по содержанию имущества | B57: П225098 | C57: 200,000.00 | D57: 200,000.00 | E57: 125,000.00 | F57: 125,000.00 | G57: х | H57: - | I57: - | J57: - | K57: х | L57: х | M57: х | N57: 125,000.00 | O57: - | P57: 125,000.00 | Q57: х | R57: -
A58: в т.ч.: | C58: - | D58: - | E58: - | F58: - | G58: - | H58: - | I58: - | J58: - | K58: - | L58: - | M58: - | N58: - | O58: - | P58: - | Q58: - | R58: -
A59: - эксплуатационные расходы | C59: - | D59: - | E59: 125,000.00 | F59: 125,000.00 | G59: х | H59: - | I59: - | J59: - | K59: х | L59: х | M59: х | N59: 125,000.00 | O59: - | P59: 125,000.00 | Q59: х | R59: -
A60: Прочие расходы по работам, услугам по содержанию имущества, не включенные в вышеуказанные дополнительные коды экономической классификации | B60: Н225099 | C60: - | D60: - | E60: - | F60: - | G60: х | H60: - | I60: - | J60: - | K60: х | L60: х | M60: х | N60: - | O60: - | P60: - | Q60: х | R60: -
A61: 226 "Прочие работы, услуги" | C61: 644,952.00 | D61: 630,952.00 | E61: 637,952.00 | F61: 637,952.00 | G61: х | H61: - | I61: - | J61: - | K61: х | L61: х | M61: х | N61: 637,952.00 | O61: - | P61: 24,752.00 | Q61: 613,200.00 | R61: -
A62: Подписка | B62: П226001 | C62: 14,000.00 | D62: - | E62: 7,000.00 | F62: 7,000.00 | G62: х | H62: - | I62: х | J62: - | K62: х | L62: х | M62: х | N62: 7,000.00 | O62: х | P62: 7,000.00 | Q62: х | R62: -
A63: Зарплата внештатных сотрудников | B63: П226002 | C63: - | D63: - | E63: - | F63: - | G63: х | H63: - | I63: х | J63: - | K63: х | L63: х | M63: х | N63: - | O63: х | P63: - | Q63: х | R63: -
A64: Услуги вневедомственной (в том числе пожарной) охраны | B64: П226004 | C64: - | D64: - | E64: - | F64: - | G64: х | H64: - | I64: х | J64: - | K64: х | L64: х | M64: х | N64: - | O64: х | P64: - | Q64: х | R64: -
A65: Расходы в области информационно-коммуникационных технологий, в части услуг по защите электронного документооборота (поддержке программного продукта) с использованием сертификационных средств криптографической защиты информации; обучение сотрудников в области информационно-коммуникационных технологий; обеспечение безопасности информации и режимносекретных мероприятий, периодическая проверка объекта информатизации на ПЭВМ на соответствие специальным требованиям по защите информации, составляющей государственную тайну, от утечки по техническим каналам, аттестация компьютеров с целью защиты информации от несанкционированного доступа, диагностика компьютеров | B65: П226015 | C65: - | D65: - | E65: - | F65: - | G65: x | H65: - | I65: x | J65: - | K65: x | L65: x | M65: x | N65: - | O65: x | P65: - | Q65: x | R65: -
A66: Разработка схем территориального планирования, градостроительных и технологических регламентов, градостроительное зонирование, планировку территорий | B66: Н226019 | C66: - | D66: - | E66: - | F66: - | G66: х | H66: - | I66: х | J66: - | K66: х | L66: х | M66: х | N66: - | O66: х | P66: - | Q66: х | R66: -
A67: Типографские услуги | B67: Н226022 | C67: - | D67: - | E67: - | F67: - | G67: х | H67: - | I67: х | J67: - | K67: х | L67: х | M67: х | N67: - | O67: х | P67: - | Q67: х | R67: -
A68: Услуги адвокатов, нотариусов, переводчиков, экспертов, инкассаторов | B68: П226025 | C68: - | D68: - | E68: - | F68: - | G68: х | H68: - | I68: х | J68: - | K68: х | L68: х | M68: х | N68: - | O68: х | P68: - | Q68: х | R68: -
A69: Проведение инвентаризации, паспортизации основных средств | B69: П226027 | C69: - | D69: - | E69: - | F69: - | G69: х | H69: - | I69: х | J69: - | K69: х | L69: х | M69: х | N69: - | O69: х | P69: - | Q69: х | R69: -
A70: Оплата медицинских осмотров | B70: П226031 | C70: - | D70: - | E70: - | F70: - | G70: х | H70: - | I70: - | J70: - | K70: х | L70: х | M70: х | N70: - | O70: - | P70: - | Q70: х | R70: -
A71: Возмещение работникам (сотрудникам) расходов по проезду при служебных командировках | B71: П226042 | C71: - | D71: - | E71: - | F71: - | G71: х | H71: - | I71: - | J71: - | K71: х | L71: х | M71: х | N71: - | O71: - | P71: - | Q71: х | R71: -
A72: Услуги охраны образовательных организаций частными охранными предприятиями | B72: П226050 | C72: 613,200.00 | D72: 613,200.00 | E72: 613,200.00 | F72: 613,200.00 | G72: х | H72: x | I72: х | J72: x | K72: х | L72: х | M72: х | N72: 613,200.00 | O72: х | P72: x | Q72: 613,200.00 | R72: -
A73: За участие в семинарах, совещаниях, конференциях, курсах повышения квалификации, …. | B73: П226052 | C73: 7,000.00 | D73: 7,000.00 | E73: 7,000.00 | F73: 7,000.00 | G73: х | H73: - | I73: х | J73: - | K73: х | L73: х | M73: х | N73: 7,000.00 | O73: x | P73: 7,000.00 | Q73: х | R73: -
A74: Услуги охраны с помощью кнопки тревожной сигнализации (КТС) | B74: П226060 | C74: - | D74: - | E74: - | F74: - | G74: х | H74: - | I74: - | J74: - | K74: х | L74: х | M74: х | N74: - | O74: - | P74: - | Q74: х | R74: -
A75: Прочие первоочередные расходы по прочим работам, услугам | B75: П226098 | C75: 10,752.00 | D75: 10,752.00 | E75: 10,752.00 | F75: 10,752.00 | G75: х | H75: - | I75: - | J75: - | K75: х | L75: х | M75: х | N75: 10,752.00 | O75: - | P75: 10,752.00 | Q75: х | R75: -
A76: Прочие расходы по прочим работам, услугам, не включенные в вышеуказанные дополнительные коды экономической классификации | B76: Н226099 | C76: - | D76: - | E76: - | F76: - | G76: х | H76: - | I76: - | J76: - | K76: х | L76: х | M76: х | N76: - | O76: - | P76: - | Q76: х | R76: -
A77: 227 "Страхование" | C77: 20,000.00 | D77: 8,786.81 | E77: 9,000.00 | F77: 9,000.00 | G77: х | H77: - | I77: - | J77: x | K77: х | L77: х | M77: х | N77: 9,000.00 | O77: 9,000.00 | P77: x | Q77: х | R77: -
A78: Услуги по страхованию (за исключением ОСАГО, КАСКО) | B78: П227001 | C78: - | D78: - | E78: - | F78: - | G78: х | H78: - | I78: - | J78: - | K78: х | L78: х | M78: х | N78: - | O78: - | P78: - | Q78: х | R78: -
A79: Услуги по страхованию транспортных средств (ОСАГО, КАСКО) | B79: П227002 | C79: 20,000.00 | D79: 8,786.81 | E79: 9,000.00 | F79: 9,000.00 | G79: х | H79: - | I79: - | J79: x | K79: х | L79: х | M79: х | N79: 9,000.00 | O79: 9,000.00 | P79: x | Q79: х | R79: -
A80: 265 "Пособия по социальной помощи, выплачиваемые работодателями, нанимателями бывшим работникам в натуральной форме" | C80: - | D80: - | E80: х | F80: х | G80: х | H80: х | I80: х | J80: х | K80: х | L80: х | M80: х | N80: х | O80: х | P80: х | Q80: х | R80: х
A81: Прочие расходы по социальной помощи, выплачиваемые работодателями, нанимателями бывшим работникам в натуральной форме | B81: П265099 | C81: - | D81: - | E81: х | F81: х | G81: х | H81: х | I81: х | J81: х | K81: х | L81: х | M81: х | N81: х | O81: х | P81: х | Q81: х | R81: х
A82: 266 "Социальные пособия и компенсации персоналу в денежной форме" | C82: - | D82: 105,985.40 | E82: х | F82: х | G82: х | H82: х | I82: х | J82: х | K82: х | L82: х | M82: х | N82: х | O82: х | P82: х | Q82: х | R82: х
A83: Расходы по социальным пособиям и компенсациям персоналу в денежной форме (больничные листы) | B83: П266099 | C83: - | D83: 105,985.40 | E83: х | F83: х | G83: х | H83: х | I83: х | J83: х | K83: х | L83: х | M83: х | N83: х | O83: х | P83: х | Q83: х | R83: х
A84: 291 "Налоги, пошлины и сборы" | C84: - | D84: - | E84: - | F84: - | G84: х | H84: - | I84: - | J84: - | K84: х | L84: х | M84: х | N84: - | O84: - | P84: - | Q84: х | R84: -
A85: Прочие налоги, в т.ч.госпошлины (за исключением налогов по школьным автобусам) | B85: П291005 | C85: - | D85: - | E85: - | F85: - | G85: х | H85: - | I85: - | J85: - | K85: х | L85: х | M85: х | N85: - | O85: - | P85: - | Q85: х | R85: -
A86: 296 "Иные выплаты текущего характера физическим лицам" | C86: - | D86: - | E86: - | F86: - | G86: x | H86: - | I86: - | J86: - | K86: x | L86: x | M86: x | N86: - | O86: - | P86: - | Q86: x | R86: -
A87: Прочие расходы по иным выплатам текущего характера физическим лицам, не включенные в вышеуказанные дополнительные коды экономической классификации | B87: П296099 | C87: - | D87: - | E87: - | F87: - | G87: x | H87: - | I87: - | J87: - | K87: x | L87: x | M87: x | N87: - | O87: - | P87: - | Q87: x | R87: -
A88: 310 "Увеличение стоимости основных средств" | C88: 80,000.00 | D88: 14,000.00 | E88: 80,000.00 | F88: 80,000.00 | G88: - | H88: - | I88: - | J88: - | K88: х | L88: х | M88: х | N88: 80,000.00 | O88: - | P88: 80,000.00 | Q88: х | R88: -
A89: Приобретение огнетушителей | B89: П310001 | C89: - | D89: - | E89: - | F89: - | G89: - | H89: - | I89: - | J89: - | K89: х | L89: х | M89: х | N89: - | O89: - | P89: - | Q89: х | R89: -
A90: Приобретение автоматизированных рабочих мест, транспортно-коммуникационного оборудования, серверного, периферийного и т.п.оборудования | B90: Н310004 | C90: - | D90: - | E90: - | F90: - | G90: - | H90: - | I90: x | J90: - | K90: х | L90: х | M90: х | N90: - | O90: x | P90: - | Q90: х | R90: -
A91: Прочие первоочередные расходы по увеличению стоимости основных средств2 | B91: П310098 | C91: - | D91: - | E91: - | F91: - | G91: - | H91: - | I91: - | J91: - | K91: х | L91: х | M91: х | N91: - | O91: - | P91: - | Q91: х | R91: -
A92: Прочие расходы по увеличению стоимости основных средств , не включенные в вышеуказанные дополнительные коды экономической классификации | B92: Н310099 | C92: 80,000.00 | D92: 14,000.00 | E92: 80,000.00 | F92: 80,000.00 | G92: - | H92: - | I92: - | J92: - | K92: х | L92: х | M92: х | N92: 80,000.00 | O92: - | P92: 80,000.00 | Q92: х | R92: -
A93: 340 "Увеличение стоимости материальных запасов" | C93: 207,190.07 | D93: 285,190.07 | E93: 189,224.38 | F93: 189,224.38 | G93: - | H93: - | I93: - | J93: - | K93: х | L93: х | M93: х | N93: 189,224.38 | O93: 135,000.00 | P93: 54,224.38 | Q93: х | R93: -
A94: Закупка медикаментов, перевязочных средств (расходных материалов)… | B94: П341006 | C94: 4,160.00 | D94: 4,160.00 | E94: 4,300.00 | F94: 4,300.00 | G94: - | H94: - | I94: - | J94: - | K94: х | L94: х | M94: х | N94: 4,300.00 | O94: - | P94: 4,300.00 | Q94: х | R94: -
A95: Продукты питания (за исключенем молока и молочных продуктов) | B95: П342005 | C95: - | D95: - | E95: - | F95: - | G95: х | H95: - | I95: х | J95: - | K95: х | L95: х | M95: х | N95: - | O95: х | P95: - | Q95: х | R95: -
A96: ГСМ | B96: П343001 | C96: 90,000.00 | D96: 90,000.00 | E96: 100,000.00 | F96: 100,000.00 | G96: х | H96: - | I96: - | J96: х | K96: х | L96: х | M96: х | N96: 100,000.00 | O96: 100,000.00 | P96: х | Q96: х | R96: -
A97: Газомоторное топливо | B97: П343003 | C97: - | D97: - | E97: - | F97: - | G97: х | H97: - | I97: - | J97: х | K97: х | L97: х | M97: х | N97: - | O97: - | P97: х | Q97: х | R97: -
A98: Моторные масла и спец.смазки | B98: П343015 | C98: 15,000.00 | D98: - | E98: 20,000.00 | F98: 20,000.00 | G98: х | H98: - | I98: - | J98: х | K98: х | L98: х | M98: х | N98: 20,000.00 | O98: 20,000.00 | P98: х | Q98: х | R98: -
A99: Первоочередные расходы по увеличению стоимости строительных материалов | B99: П344098 | C99: - | D99: - | E99: - | F99: - | G99: х | H99: - | I99: х | J99: - | K99: х | L99: х | M99: х | N99: - | O99: х | P99: - | Q99: х | R99: -
A100: Прочие расходы по увеличению стоимости строительных материалов | B100: Н344099 | C100: - | D100: 78,533.00 | E100: - | F100: - | G100: х | H100: - | I100: х | J100: - | K100: х | L100: х | M100: х | N100: - | O100: х | P100: - | Q100: х | R100: -
A101: Закупка мягкого инвентаря, одежды, обмундирования | B101: П345002 | C101: - | D101: - | E101: - | F101: - | G101: х | H101: - | I101: х | J101: - | K101: х | L101: х | M101: х | N101: - | O101: х | P101: - | Q101: х | R101: -
A102: Закупка запчастей к оборудованию | B102: П346003 | C102: - | D102: - | E102: - | F102: - | G102: x | H102: - | I102: - | J102: - | K102: х | L102: х | M102: х | N102: - | O102: - | P102: - | Q102: х | R102: -
A103: Закупка материалов, используемых в процессе обучения | B103: П346004 | C103: - | D103: - | E103: - | F103: - | G103: - | H103: - | I103: x | J103: - | K103: х | L103: х | M103: х | N103: - | O103: x | P103: - | Q103: х | R103: -
A104: Закупка запчастей к транспортным средствам | B104: П346013 | C104: - | D104: 13,000.00 | E104: 15,000.00 | F104: 15,000.00 | G104: x | H104: - | I104: - | J104: x | K104: х | L104: х | M104: х | N104: 15,000.00 | O104: 15,000.00 | P104: x | Q104: х | R104: -
A105: Приобретение автошин | B105: П346014 | C105: - | D105: - | E105: - | F105: - | G105: x | H105: - | I105: - | J105: x | K105: х | L105: х | M105: х | N105: - | O105: - | P105: x | Q105: х | R105: -
A106: Приобретение канцелярских, хозяйственных товаров, расходных материалов | B106: П346017 | C106: 98,030.07 | D106: 76,646.07 | E106: 49,924.38 | F106: 49,924.38 | G106: - | H106: - | I106: - | J106: - | K106: х | L106: х | M106: х | N106: 49,924.38 | O106: - | P106: 49,924.38 | Q106: х | R106: -
A107: Корма для животных | B107: П346035 | C107: - | D107: - | E107: - | F107: - | G107: - | H107: - | I107: - | J107: - | K107: х | L107: х | M107: х | N107: - | O107: - | P107: - | Q107: х | R107: -
A108: Прочие первоочередные расходы по увеличению стоимости прочих материальных запасов | B108: П346098 | C108: - | D108: - | E108: - | F108: - | G108: - | H108: - | I108: - | J108: - | K108: х | L108: х | M108: х | N108: - | O108: - | P108: - | Q108: х | R108: -
A109: Прочие расходы по увеличению стоимости прочих материальных запасов, не включенные в вышеуказанные дополнительные коды экономической классификации | B109: Н346099 | C109: - | D109: 1,467.00 | E109: - | F109: - | G109: - | H109: - | I109: - | J109: - | K109: х | L109: х | M109: х | N109: - | O109: - | P109: - | Q109: х | R109: -
A110: в т.ч.:
A111: - доведение ассигнований до норматива | C111: - | D111: - | E111: - | F111: - | G111: - | H111: - | I111: - | J111: - | K111: х | L111: х | M111: х | N111: х | O111: x | P111: x | Q111: х | R111: -
A112: Приобретение (изготовление) подарочной и сувенирной продукции (поздравительные открытки, адреса, почетные грамоты, дипломы и др.) | B112: Н349011 | C112: - | D112: 21,384.00 | E112: - | F112: - | G112: - | H112: - | I112: x | J112: - | K112: х | L112: х | M112: х | N112: - | O112: x | P112: - | Q112: х | R112: -
A113: Расходы по увеличению стоимости прочих материальных запасов однократного применения | B113: П349098 | C113: - | D113: - | E113: - | F113: - | G113: - | H113: - | I113: - | J113: - | K113: х | L113: х | M113: х | N113: - | O113: - | P113: - | Q113: х | R113: -
A114: Прочие расходы по увеличению стоимости прочих материальных запасов однократного применения, не включенные в вышеуказанные дополнительные коды экономической классификации | B114: Н349099 | C114: - | D114: - | E114: - | F114: - | G114: - | H114: - | I114: - | J114: - | K114: х | L114: х | M114: х | N114: - | O114: - | P114: - | Q114: х | R114: -
A115: Налоги | C115: 403,060.84 | D115: 401,174.84 | E115: 401,170.84 | F115: 401,170.84 | G115: х | H115: - | I115: - | J115: - | K115: х | L115: х | M115: х | N115: 401,170.84 | O115: 6,800.00 | P115: 394,370.84 | Q115: х | R115: -
A116: Земельный налог | B116: П291001 | C116: 261,804.84 | D116: 261,804.84 | E116: 261,798.84 | F116: 261,798.84 | G116: х | H116: - | I116: - | J116: - | K116: х | L116: х | M116: х | N116: 261,798.84 | O116: - | P116: 261,798.84 | Q116: х | R116: -
A117: Налог на имущество | B117: П291014 | C117: 134,456.00 | D117: 132,570.00 | E117: 132,572.00 | F117: 132,572.00 | G117: х | H117: - | I117: - | J117: - | K117: х | L117: х | M117: х | N117: 132,572.00 | O117: - | P117: 132,572.00 | Q117: х | R117: -
A118: Транспортный налог | B118: П291015 | C118: 6,800.00 | D118: 6,800.00 | E118: 6,800.00 | F118: 6,800.00 | G118: х | H118: - | I118: - | J118: x | K118: х | L118: х | M118: х | N118: 6,800.00 | O118: 6,800.00 | P118: x | Q118: х | R118: -
A119: ассигнования | C119: - | D119: - | E119: 59,407,038.21 | F119: 59,407,038.21 | G119: 34,686,912.00 | H119: 5,148,671.54 | I119: - | J119: 5,148,671.54 | K119: 15,773,979.72 | L119: 391,240.58 | M119: 15,382,739.14 | N119: 3,797,474.95 | O119: 182,598.00 | P119: 3,001,676.95 | Q119: 613,200.00 | R119: -
A120: лимиты | C120: - | D120: - | E120: 59,407,038.21 | F120: 59,407,038.21 | G120: 34,686,912.00 | H120: 5,148,671.54 | I120: - | J120: 5,148,671.54 | K120: 15,773,979.72 | L120: 391,240.58 | M120: 15,382,739.14 | N120: 3,797,474.95 | O120: 182,598.00 | P120: 3,001,676.95 | Q120: 613,200.00 | R120: -

Sheet расш-ка
A1: Расшифровка к бюджету на 2026 год МУДОД "Центр внешкольной работы" Авиастроительного района г. Казани
A3: Наименование услуги | B3: Итого | C3: 302 | D3: 308 авто | E3: 308
A4: 221 "Услуги связи" | C4: =SUM(C5:C6) -> 0.00 | D4: =SUM(D5:D6) -> 0.00 | E4: =SUM(E5:E6) -> 68,200.00 | K4: 290015 | L4: 225011 | M4: 225013 | N4: 225015 | O4: 227002 | P4: 343001 | Q4: 343015 | R4: 346013 | S4: 341006 | T4: 346099 | U4: 227002 | V4: 226031 | W4: 227002 | X4: ВСЕГО без ФОТ и налога
A5: Услуги телефонной связи (абонентская и повременная плата (ежемесячный платеж) за местные, междугородные, международные переговоры) | B5: 221001 | C5: 0.00 | D5: 0.00 | E5: =31000+12000 -> 43,000.00 | G5: № п/п | H5: Марка авто | I5: Гос.номер | J5: ДОП.ФК | K5: Трансп.налог | L5: ТО ТС | M5: Тех.осмотр | N5: ГЛОНАС | O5: ОСАГО | P5: Бензин | Q5: Масла и спец.смазки | R5: Автозапчасти | S5: Аптечка для водителей | T5: Карта тахографа | U5: Страхование сидячих мест | V5: Медицинский осмотр | W5: Страхование сидячих мест
A6: Плата за услуги сети Интернет | B6: 221012 | C6: 0.00 | D6: 0.00 | E6: 25,200.00 | G6: 1 | H6: Автобус Ford Transit | I6: Х098РН | J6: 90220 | K6: 6,800.00 | L6: 20,000.00 | M6: 3,758.00 | N6: 8,040.00 | O6: 9,000.00 | P6: 100,000.00 | Q6: 20,000.00 | R6: 15,000.00 | S6: 0.00 | T6: 0.00 | U6: 0.00 | V6: 0.00 | W6: 0.00 | X6: =SUM(L6:W6) -> 175,798.00
A7: 225 "Работы, услуги по содержанию имущества" | C7: =SUM(C9:C20) -> 0.00 | D7: =SUM(D9:D20) -> 31,798.00 | E7: =SUM(E9:E20) -> 496,792.63 | G7: ИТОГО ПО УЧРЕЖДЕНИЮ | K7: =K6 -> 6,800.00 | L7: =L6 -> 20,000.00 | M7: =M6 -> 3,758.00 | N7: =N6 -> 8,040.00 | O7: =O6 -> 9,000.00 | P7: 100,000.00 | Q7: =Q6 -> 20,000.00 | R7: 15,000.00 | S7: 0.00 | T7: 0.00 | U7: 0.00 | V7: 0.00 | W7: 0.00 | X7: =SUM(K7:W7) -> 182,598.00
A8: Содержание в чистоте помещений, зданий, дворов, иного недвижимого имущества | B8: 225002 | C8: =SUM(C9:C11) -> 0.00 | D8: =SUM(D9:D11) -> 0.00 | E8: =SUM(E9:E11) -> 66,500.00
A9: в т.ч. обслуживание конт площадки | C9: 0.00 | D9: 0.00 | E9: 0.00
A10: в т.ч. сброс снега | C10: 0.00 | D10: 0.00 | E10: =50000+16500 -> 66,500.00
A11: в т.ч. дератиз, дезинсекц | C11: 0.00 | D11: 0.00
A12: Проведение работ по ремонту и восстановлению эффективности функционирования коммунальных инженерных систем и коммуникаций, осуществляемые сверх регламентированного условиями поставки коммунальных услуг перечня работ (технологических нужд) | B12: 225003 | C12: 0.00 | D12: 0.00 | E12: 36,274.68
A13: Текущий ремонт зданий, сооружений | B13: 225007 | D13: 0.00 | E13: 44,632.80
A14: Техническое обслуживание и ремонт аппаратного обеспечения (оргтехника, медицинское оборудование, компьютерная техника и т.д.), включающее контроль технического состояния | B14: 225010 | C14: 0.00 | D14: 0.00 | E14: 30,000.00
A15: Техническое обслуживание транспортных средств | B15: 225011 | C15: 0.00 | D15: 20,000.00 | E15: 0.00
A16: Технический осмотр транспортных средств | B16: 225013 | C16: 0.00 | D16: 3,758.00 | E16: 0.00
A17: Расходы на техническое обслуживание и ремонт оборудования (торговое, кухонное, офисное, лифты и т.п.) | B17: 225015 | C17: 0.00 | D17: 0.00 | E17: 155,446.82
A18: в т.ч. ГЛОНАС | D18: 8,040.00 | E18: 0.00
A19: Техническое обслуживание приборов учета | B19: 225035 | C19: 0.00 | D19: 0.00 | E19: 38,938.33
A20: Прочие работы, услуги по содержанию имущества | B20: 225098 | C20: 0.00 | D20: 0.00 | E20: =E21 -> 125,000.00
A21: - эксплуатационные расходы | C21: 0.00 | D21: 0.00 | E21: 125,000.00
A22: 226 "Прочие работы, услуги" | C22: =C23+C24+C26+C27 -> 0.00 | D22: =D23+D24+D26+D27 -> 0.00 | E22: =E23+E24+E26+E27 -> 24,752.00
A23: Подписка | B23: 226001 | C23: 0.00 | D23: 0.00 | E23: 7,000.00
A24: За участие в семинарах, совещаниях, конференциях, курсах повышения квалификации, …. | B24: 226052 | C24: =C25 -> 0.00 | D24: =D25 -> 0.00 | E24: =E25 -> 7,000.00
A25: в т.ч. курсы по гигиеническому обучению работников | C25: 0.00 | D25: 0.00 | E25: =3500+3500 -> 7,000.00
A26: Оплата медицинских осмотров | B26: 226031 | C26: 0.00 | D26: 0.00 | E26: 0.00
A27: Прочие работы, услуги | B27: 226098 | C27: =SUM(C28:C30) -> 0.00 | D27: =SUM(D28:D30) -> 0.00 | E27: =SUM(E28:E30) -> 10,752.00
A28: в т.ч.съем и передача приборов учета | C28: 0.00 | D28: 0.00 | E28: 10,752.00
A29: в т.ч.специальная оценка условий труда | C29: 0.00 | D29: 0.00 | E29: 0.00
A30: в т.ч. Утилизация ламп | C30: 0.00 | D30: 0.00 | E30: 0.00
A31: 227 "Страхование" | C31: =SUM(C32) -> 0.00 | D31: =SUM(D32) -> 9,000.00 | E31: =SUM(E32) -> 0.00
A32: Услуги по страхованию транспортных средств (ОСАГО, КАСКО) | B32: 227002 | C32: 0.00 | D32: 9,000.00 | E32: 0.00
A33: 310 "Увеличение стоимости основных средств" | C33: =SUM(C34:C35) -> 0.00 | D33: =SUM(D34:D35) -> 0.00 | E33: =SUM(E34:E35) -> 80,000.00
A34: Приобретение автоматизированных рабочих мест, транспортно-коммуникационного оборудования, серверного, периферийного и т.п.оборудования | B34: 310004 | C34: 0.00 | D34: 0.00 | E34: 0.00
A35: Прочие расходы по увеличению стоимости основных средств | B35: 310099 | C35: 0.00 | D35: 0.00 | E35: 80,000.00
A36: 341 "Увеличение стоимости лекарственных препаратов и материалов, применяемых в медицинских целях" | C36: =SUM(C37) -> 0.00 | D36: =SUM(D37) -> 0.00 | E36: =SUM(E37) -> 4,300.00
A37: Аптечка для водителя | B37: 341006 | C37: 0.00 | D37: 0.00 | E37: 4,300.00
A38: 343 "Увеличение стоимости горюче-смазочных материалов" | C38: =SUM(C39:C40) -> 0.00 | D38: =SUM(D39:D40) -> 120,000.00 | E38: =SUM(E39:E40) -> 0.00
A39: ГСМ | B39: 343001 | C39: 0.00 | D39: 100,000.00 | E39: 0.00
A40: Моторные масла и спец.смазки | B40: 343015 | C40: 0.00 | D40: 20,000.00 | E40: 0.00
A41: 346 "Увеличение стоимости прочих оборотных запасов (материалов)" | C41: =SUM(C42:C44) -> 0.00 | D41: =SUM(D42:D44) -> 15,000.00 | E41: =SUM(E42:E44) -> 49,924.38
A42: Закупка запчастей к транспортным средствам | B42: 346013 | C42: 0.00 | D42: 15,000.00 | E42: 0.00
A43: Приобретение канцелярских, хозяйственных товаров, расходных материалов | B43: 346017 | C43: 0.00 | D43: 0.00 | E43: 49,924.38
A44: Прочие расходы по увеличению стоимости материальных запасов | B44: 346099 | C44: 0.00 | D44: =D45 -> 0.00 | E44: =E45 -> 0.00
A45: в т.ч. Карта тахографа / ПСС | D45: 0.00 | E45: 0.00
A46: Налоги | C46: =SUM(C49) -> 0.00 | D46: =SUM(D47:D49) -> 0.00 | E46: =SUM(E47:E49) -> 0.00
A47: Земельный налог | B47: 290001
A48: Налог на имущество
A49: Транспортный налог | B49: 290015 | C49: 0.00
A50: Всего по учреждению | B50: =SUM(C50:E50) -> 899,767.01 | C50: =C46+C41+C38+C36+C33+C31+C22+C7+C4 -> 0.00 | D50: =D46+D41+D38+D36+D33+D31+D22+D7+D4 -> 175,798.00 | E50: =E46+E41+E38+E36+E33+E31+E22+E7+E4 -> 723,969.01
A53: Нормативный объем финансирования (Многопрофильные)
B55: Наименование полное | C55: "Центр внешкольной работы" Авиастроительного района г.Казани
B56: Отчетный период | C56: 2022_Нормативы
A59: Расходы на коммунальные услуги, руб/кв.м | D59: 88.48
A60: Расходы на содержание имущества, руб/кв.м | D60: 26.78
A61: НСИ базовый | D61: 34.12
A62: НСИ фактический | D62: 115.26
A63: Поправочный коэффициент к базовому НСИ | D63: 3.38
A64: Стоимость содержания имущества, руб в год | D64: 4,016,289.51
A65: Объем по нормативу финансовых затрат, руб в год | D65: 14,922,635.00
A66: Объем финансового обеспечения по нормативу, руб в год | D66: 18,938,924.51
A67: Поправочный коэффициент к ОФО | D67: 0.0000
A68: Объем финансового обеспечения из бюджета, руб в год | D68: 0.00
